bitfinex/quotes_BTCUSD_20241024
["timestamp","ask_amount","ask_price","bid_price","bid_amount"]
[1729793704762,0.078635,67847.0,67846.0,0.56716971]
[1729793705493,0.078635,67847.0,67846.0,0.5014313]
[1729793705725,0.000835,67847.0,67845.0,0.03]
[1729793705962,0.000835,67847.0,67845.0,0.177394]
[1729793705963,0.1696,67846.0,67845.0,0.177394]
[1729793707542,0.1696,67846.0,67845.0,0.28092949]
[1729793708953,0.1696,67846.0,67845.0,0.177394]
[1729793710798,0.1696,67846.0,67845.0,0.32789781]
[1729793712928,0.1696,67846.0,67845.0,0.177394]
[1729793715762,0.000835,67847.0,67845.0,0.177394]
[1729793715763,0.000835,67847.0,67846.0,0.147392]
[1729793715996,0.000835,67847.0,67846.0,0.29789581]
[1729793716236,0.000835,67847.0,67846.0,0.4014313]
[1729793716483,0.000835,67847.0,67846.0,0.39789581]
[1729793725394,0.093235,67847.0,67846.0,0.39789581]
[1729793725630,0.1688,67846.0,67845.0,0.03]
[1729793725902,0.27233549,67846.0,67845.0,0.03]
[1729793726144,0.29809669,67846.0,67845.0,0.03]
[1729793726470,0.28430284,67846.0,67843.0,0.147398]
[1729793726655,0.005,67842.0,67841.0,0.00165]
[1729793726882,0.0994,67842.0,67841.0,0.149053]
[1729793727137,0.11134812,67842.0,67841.0,0.149053]
[1729793727379,0.11134812,67842.0,67841.0,0.00165]
[1729793727608,0.12514435,67842.0,67841.0,0.00165]
[1729793727854,0.11134812,67842.0,67841.0,0.149053]
[1729793728082,0.12514435,67842.0,67841.0,0.149053]
[1729793728335,0.19174812,67842.0,67841.0,0.00165]
[1729793728564,0.20554435,67842.0,67841.0,0.00165]
[1729793729050,0.35294535,67842.0,67841.0,0.00165]
[1729793729757,0.20554435,67842.0,67841.0,0.00165]
[1729793729991,0.2055417,67842.0,67841.0,0.00165]
[1729793731969,0.19174812,67842.0,67841.0,0.149053]
[1729793732683,0.19174812,67842.0,67841.0,0.00165]
[1729793733368,0.18674812,67842.0,67841.0,0.00103943]
[1729793733579,0.19174812,67842.0,67841.0,0.00103943]
[1729793735335,0.18674812,67842.0,67841.0,0.00103943]
[1729793736676,0.18674812,67842.0,67841.0,0.14844243]
[1729793737603,0.18674812,67842.0,67841.0,0.00103943]
[1729793738045,0.18757312,67842.0,67841.0,0.00103943]
[1729793738319,0.01277312,67842.0,67841.0,0.14844243]
[1729793738757,0.000825,67842.0,67841.0,0.14844243]
[1729793738964,0.000825,67842.0,67841.0,0.00103943]
[1729793739176,0.0127778,67842.0,67841.0,0.00103943]
[1729793739423,0.000825,67842.0,67841.0,0.14844243]
[1729793740098,0.000825,67842.0,67841.0,0.29894624]
[1729793741386,0.000825,67842.0,67841.0,0.32194624]
[1729793744166,0.000825,67842.0,67841.0,0.42194624]
[1729793750781,0.000825,67842.0,67841.0,0.52548173]
[1729793757225,0.000825,67842.0,67841.0,0.56927498]
[1729793757865,0.000825,67842.0,67841.0,0.52548173]
[1729793758411,0.000825,67842.0,67841.0,0.59117161]
[1729793758613,0.000825,67842.0,67841.0,0.59115207]
[1729793758812,0.000825,67842.0,67841.0,0.52548173]
[1729793759385,0.000825,67842.0,67841.0,0.68706882]
[1729793759587,0.000825,67842.0,67841.0,0.75273182]
[1729793759813,0.000825,67842.0,67841.0,0.52548173]
[1729793760216,0.000825,67842.0,67841.0,0.56925715]
[1729793760554,0.000825,67842.0,67841.0,0.99563354]
[1729793760713,0.000825,67842.0,67841.0,0.88618297]
[1729793761067,0.000825,67842.0,67841.0,0.96528297]
[1729793761238,0.000825,67842.0,67841.0,0.96728297]
[1729793762415,0.01378854,67855.0,67854.0,0.0985]
[1729793762641,0.01378854,67855.0,67854.0,0.70404979]
[1729793762642,0.23491496,67855.0,67854.0,0.70404979]
[1729793762868,0.01378854,67855.0,67854.0,0.70404979]
[1729793763870,0.01378854,67855.0,67854.0,0.80404979]
[1729793764076,0.01378854,67855.0,67854.0,0.84778916]
[1729793764308,0.01378854,67855.0,67854.0,0.80404979]
[1729793764530,0.01378854,67855.0,67854.0,0.84778916]
[1729793764811,0.01378854,67855.0,67854.0,0.85278916]
[1729793765046,0.01378854,67855.0,67854.0,0.53371114]
[1729793766441,0.01378854,67855.0,67854.0,0.75983756]
[1729793766679,0.01378854,67855.0,67854.0,0.75259543]
[1729793766916,0.01378854,67855.0,67854.0,0.53371114]
[1729793768472,0.01378854,67855.0,67854.0,0.63724663]
[1729793768690,9e-05,67856.0,67855.0,0.1]
[1729793768930,9e-05,67856.0,67855.0,0.39787681]
[1729793770469,9e-05,67856.0,67855.0,0.60494779]
[1729793772406,0.000915,67856.0,67855.0,0.60494779]
[1729793777814,0.000915,67856.0,67855.0,0.147373]
[1729793778051,0.077615,67856.0,67855.0,0.147373]
[1729793778296,0.077615,67856.0,67855.0,0.36849942]
[1729793778537,0.077615,67856.0,67855.0,0.147373]
[1729793778778,0.000915,67856.0,67855.0,0.25090849]
[1729793781427,0.000915,67856.0,67855.0,0.4014123]
[1729793782329,0.000915,67856.0,67855.0,0.29787681]
[1729793784181,0.000915,67856.0,67855.0,0.147373]
[1729793784890,0.01391622,67856.0,67855.0,0.147373]
[1729793785124,0.000915,67856.0,67855.0,0.147373]
[1729793786055,0.177015,67856.0,67855.0,0.147373]
[1729793786280,0.19002628,67856.0,67855.0,0.147373]
[1729793788139,0.19002628,67856.0,67852.0,0.10353549]
[1729793788372,0.19002628,67856.0,67855.0,0.147373]
[1729793789269,0.177015,67856.0,67855.0,0.147373]
[1729793789545,0.19003008,67856.0,67855.0,0.147373]
[1729793792124,0.09633008,67856.0,67855.0,0.147373]
[1729793792578,0.083315,67856.0,67855.0,0.147373]
[1729793793025,0.09616618,67856.0,67855.0,0.147373]
[1729793793466,0.083315,67856.0,67855.0,0.147373]
[1729793794625,0.09616618,67856.0,67855.0,0.147373]
[1729793794853,0.083315,67856.0,67855.0,0.147373]
[1729793795093,0.09616618,67856.0,67855.0,0.147373]
[1729793796501,0.083315,67856.0,67855.0,0.147373]
[1729793797199,0.09616618,67856.0,67855.0,0.147373]
[1729793797435,0.083315,67856.0,67855.0,0.147373]
[1729793799309,0.083315,67856.0,67855.0,0.25090849]
[1729793800913,0.000915,67856.0,67855.0,0.25090849]
[1729793802701,0.000915,67856.0,67855.0,0.50494779]
[1729793802912,0.000915,67856.0,67855.0,0.4014123]
[1729793811320,0.000915,67856.0,67855.0,0.44517518]
[1729793811948,0.000915,67856.0,67855.0,0.54871067]
[1729793812617,0.000915,67856.0,67855.0,0.54872775]
[1729793812823,0.000915,67856.0,67855.0,0.63932775]
[1729793813450,0.000915,67856.0,67855.0,0.63932663]
[1729793815573,0.000915,67856.0,67855.0,0.59554779]
[1729793817296,0.000915,67856.0,67855.0,0.6612163]
[1729793819328,0.000915,67856.0,67855.0,0.82282766]
[1729793820437,0.000915,67856.0,67855.0,0.59554779]
[1729793821122,0.000915,67856.0,67855.0,0.66122351]
[1729793821349,0.000915,67856.0,67855.0,0.82284416]
[1729793821600,0.000915,67856.0,67855.0,0.82284465]
[1729793823477,0.000915,67856.0,67855.0,0.75716893]
[1729793823700,0.000915,67856.0,67855.0,0.82284525]
[1729793823942,0.000915,67856.0,67855.0,0.59554779]
[1729793824176,0.000915,67856.0,67855.0,0.66122411]
[1729793824641,0.000915,67856.0,67855.0,0.82284796]
[1729793825808,0.000915,67856.0,67855.0,0.75717164]
[1729793826261,0.000915,67856.0,67855.0,0.82284626]
[1729793829403,0.000915,67856.0,67855.0,0.59554779]
[1729793829860,0.000915,67856.0,67855.0,0.82283101]
[1729793830343,0.000915,67856.0,67855.0,0.59554779]
[1729793830792,0.000915,67856.0,67855.0,0.82282691]
[1729793832226,0.000915,67856.0,67855.0,0.71929142]
[1729793832455,0.000915,67856.0,67855.0,0.82282691]
[1729793834725,0.000915,67856.0,67855.0,0.8228334]
[1729793834726,0.000915,67856.0,67855.0,0.61576242]
[1729793835087,0.000915,67856.0,67855.0,0.8228334]
[1729793836212,0.000915,67856.0,67855.0,0.62869791]
[1729793837397,0.000915,67856.0,67855.0,0.46708399]
[1729793837634,0.000915,67856.0,67855.0,0.4014123]
[1729793838760,0.000915,67856.0,67855.0,0.44520418]
[1729793839199,0.000915,67856.0,67855.0,0.4014123]
[1729793839871,0.000915,67856.0,67855.0,0.46708399]
[1729793840094,0.000915,67856.0,67855.0,0.29787681]
[1729793840338,0.000915,67856.0,67855.0,0.44522216]
[1729793842416,0.000915,67856.0,67855.0,0.4014123]
[1729793843756,0.000915,67856.0,67855.0,0.62885389]
[1729793843958,0.000915,67856.0,67855.0,0.62891519]
[1729793844384,0.000915,67856.0,67855.0,0.5631822]
[1729793844590,0.000915,67856.0,67855.0,0.66671769]
[1729793845028,0.000915,67856.0,67855.0,0.76481769]
[1729793845862,0.000915,67856.0,67855.0,0.76476364]
[1729793847383,0.000915,67856.0,67855.0,0.87428549]
[1729793850114,0.000915,67856.0,67855.0,0.76476364]
[1729793850750,0.000915,67856.0,67855.0,0.76482824]
[1729793851821,0.000915,67856.0,67855.0,0.87439383]
[1729793852242,0.000915,67856.0,67855.0,0.76482824]
[1729793852904,0.000915,67856.0,67855.0,0.87439383]
[1729793853327,0.000915,67856.0,67855.0,0.76482824]
[1729793853530,0.000915,67856.0,67855.0,0.87439383]
[1729793855044,0.000915,67856.0,67855.0,0.76482824]
[1729793855614,0.000915,67856.0,67855.0,0.87439383]
[1729793856019,0.000915,67856.0,67855.0,0.76482824]
[1729793856253,0.000915,67856.0,67855.0,0.66672824]
[1729793857726,0.000915,67856.0,67855.0,0.75438375]
[1729793860451,0.000915,67856.0,67855.0,0.66672824]
[1729793862341,0.000915,67856.0,67855.0,0.75438222]
[1729793863176,0.000915,67856.0,67855.0,0.66672824]
[1729793864429,0.000915,67856.0,67855.0,0.77629383]
[1729793864634,0.000915,67856.0,67855.0,0.66672824]
[1729793865269,0.000915,67856.0,67855.0,0.77629383]
[1729793865475,0.000915,67856.0,67855.0,0.66672824]
[1729793866421,0.000915,67856.0,67855.0,0.77627794]
[1729793866642,0.000915,67856.0,67855.0,0.66672824]
[1729793867133,0.000835,67863.0,67862.0,0.147357]
[1729793867354,0.000835,67863.0,67862.0,0.38548062]
[1729793867584,0.000835,67863.0,67862.0,0.4013963]
[1729793867793,0.000835,67863.0,67862.0,0.3416734]
[1729793867992,0.000835,67863.0,67862.0,0.29786081]
[1729793868195,0.000835,67863.0,67862.0,0.4013963]
[1729793868425,0.000835,67863.0,67862.0,0.44520889]
[1729793868642,0.000835,67863.0,67862.0,0.4013963]
[1729793869735,0.000835,67863.0,67862.0,0.5631099]
[1729793869946,0.000835,67863.0,67862.0,0.46710757]
[1729793870186,0.000835,67863.0,67862.0,0.62882069]
[1729793870409,0.000835,67863.0,67862.0,0.65940971]
[1729793870589,0.000835,67863.0,67862.0,0.72511431]
[1729793873829,0.000835,67863.0,67862.0,0.4976963]
[1729793874050,0.000835,67863.0,67862.0,0.72506093]
[1729793874891,0.000835,67863.0,67862.0,0.74694666]
[1729793875103,0.000835,67863.0,67862.0,0.65936641]
[1729793875545,0.000835,67863.0,67862.0,0.74692498]
[1729793876183,0.000835,67863.0,67862.0,0.85046047]
[1729793876388,0.000835,67863.0,67862.0,0.60123179]
[1729793877281,0.000835,67863.0,67862.0,0.4976963]
[1729793877691,0.000835,67863.0,67862.0,0.60123179]
[1729793878848,0.000835,67863.0,67862.0,0.65931157]
[1729793880335,0.000835,67863.0,67862.0,0.76284706]
[1729793880538,0.000835,67863.0,67862.0,0.65931157]
[1729793880945,0.000835,67863.0,67862.0,0.76284706]
[1729793881545,0.000835,67863.0,67862.0,0.65931157]
[1729793882311,0.000835,67863.0,67862.0,0.76870312]
[1729793883361,0.000835,67863.0,67862.0,0.65931157]
[1729793883991,0.000835,67863.0,67862.0,0.96794706]
[1729793884837,0.000835,67867.0,67863.0,0.2976]
[1729793885049,0.000835,67867.0,67866.0,0.44691998]
[1729793885266,0.000835,67867.0,67866.0,0.76403906]
[1729793885502,0.000835,67867.0,67866.0,0.78703906]
[1729793885705,0.000835,67867.0,67866.0,0.89633262]
[1729793886327,0.000835,67867.0,67866.0,0.78703906]
[1729793886532,0.000835,67867.0,67866.0,0.89633262]
[1729793886960,0.000835,67867.0,67866.0,0.78703906]
[1729793887387,0.000835,67867.0,67866.0,0.87444587]
[1729793888681,0.000835,67867.0,67866.0,0.74291038]
[1729793888865,0.000835,67867.0,67866.0,0.4013883]
[1729793890602,0.000835,67867.0,67866.0,0.50492379]
[1729793890810,0.000835,67867.0,67866.0,0.54865749]
[1729793891667,0.000835,67867.0,67866.0,0.50492379]
[1729793895272,0.000835,67867.0,67866.0,0.60402379]
[1729793901047,0.000835,67879.0,67868.0,0.023]
[1729793901260,0.000835,67879.0,67878.0,0.25085849]
[1729793901486,0.000835,67879.0,67878.0,0.4013623]
[1729793901710,0.000835,67879.0,67878.0,0.29782681]
[1729793908972,0.000835,67879.0,67878.0,0.30702531]
[1729793918144,0.000835,67879.0,67878.0,0.147323]
[1729793918145,0.079035,67879.0,67878.0,0.147323]
[1729793918378,0.079035,67879.0,67878.0,0.25085849]
[1729793920486,0.000835,67879.0,67878.0,0.30085849]
[1729793924210,0.000835,67879.0,67878.0,0.55489779]
[1729793924665,0.000835,67879.0,67878.0,0.4513623]
[1729793924898,0.000835,67879.0,67878.0,0.49508]
[1729793926174,0.000835,67879.0,67878.0,0.69711335]
[1729793926585,0.000835,67879.0,67878.0,0.65329779]
[1729793927625,0.000835,67879.0,67878.0,0.88060917]
[1729793929091,0.000835,67879.0,67878.0,0.81503261]
[1729793929301,0.000835,67879.0,67878.0,0.71149712]
[1729793929504,0.000835,67879.0,67878.0,0.777223]
[1729793929715,0.000835,67879.0,67878.0,0.71149712]
[1729793929964,0.000835,67879.0,67878.0,0.79893253]
[1729793930172,0.000835,67879.0,67878.0,0.71149712]
[1729793930383,0.000835,67879.0,67878.0,0.79893253]
[1729793931084,0.000835,67879.0,67878.0,0.90246802]
[1729793931298,0.000835,67879.0,67878.0,0.81503261]
[1729793931719,0.000835,67879.0,67878.0,0.90246802]
[1729793931940,0.000835,67879.0,67878.0,1.14659444]
[1729793932170,0.00586,67887.0,67886.0,0.44647598]
[1729793932392,0.00586,67887.0,67886.0,0.59697979]
[1729793932602,0.00586,67887.0,67886.0,0.50487979]
[1729793933712,0.00586,67887.0,67886.0,0.54868154]
[1729793935457,0.00586,67887.0,67886.0,0.73221368]
[1729793935664,0.00586,67887.0,67886.0,0.57058242]
[1729793935889,0.00586,67887.0,67886.0,0.58008408]
[1729793936851,0.00586,67887.0,67886.0,0.51438145]
[1729793937073,0.006685,67887.0,67886.0,0.58005484]
[1729793938510,0.006685,67887.0,67886.0,0.74164932]
[1729793938726,0.006685,67887.0,67886.0,0.58005484]
[1729793939424,0.006685,67887.0,67886.0,0.51438145]
[1729793940795,0.006685,67887.0,67886.0,0.56438145]
[1729793944455,0.006685,67887.0,67886.0,0.63004108]
[1729793944699,0.006685,67887.0,67886.0,0.56438145]
[1729793945157,0.006685,67887.0,67886.0,0.63003384]
[1729793945371,0.006685,67887.0,67886.0,0.79162896]
[1729793946694,0.006685,67887.0,67886.0,0.72596828]
[1729793946913,0.006685,67887.0,67886.0,0.81351025]
[1729793948235,0.006685,67887.0,67886.0,0.72596828]
[1729793950037,0.006685,67887.0,67886.0,0.58455097]
[1729793950254,0.006685,67887.0,67886.0,0.63003457]
[1729793950559,0.006685,67887.0,67886.0,0.56438145]
[1729793951472,0.006685,67887.0,67886.0,0.7915917]
[1729793951713,0.006685,67887.0,67886.0,0.58452072]
[1729793951941,0.006685,67887.0,67886.0,0.7915917]
[1729793954091,0.006685,67887.0,67886.0,0.79156048]
[1729793954316,0.006685,67887.0,67886.0,0.5844895]
[1729793954506,0.006685,67887.0,67886.0,0.79156048]
[1729793955088,0.006685,67887.0,67886.0,0.56438145]
[1729793955452,0.006685,67887.0,67886.0,0.60814315]
[1729793955876,0.006685,67887.0,67886.0,0.41367883]
[1729793956525,0.006685,67887.0,67886.0,0.56098383]
[1729793961586,0.006685,67887.0,67886.0,0.56263383]
[1729793967362,0.006685,67887.0,67886.0,0.62828433]
[1729793968248,0.006685,67887.0,67886.0,0.56263383]
[1729793968535,0.006685,67887.0,67886.0,0.62830413]
[1729793968774,0.006685,67887.0,67886.0,0.78994222]
[1729793969259,0.006685,67887.0,67886.0,1.12159834]
[1729793969500,0.006685,67887.0,67886.0,1.10992242]
[1729793970199,0.006685,67887.0,67886.0,1.00047192]
[1729793971328,0.006685,67887.0,67886.0,1.08806704]
[1729793972773,0.006685,67887.0,67886.0,1.00976704]
[1729793975190,0.006685,67887.0,67886.0,0.91186704]
[1729793975406,0.006685,67887.0,67886.0,0.82427192]
[1729793976252,0.006685,67887.0,67886.0,0.93372242]
[1729793978125,0.006685,67887.0,67886.0,0.62665144]
[1729793978348,0.088085,67887.0,67886.0,0.58088955]
[1729793979228,0.088085,67887.0,67886.0,0.68442504]
[1729793979430,0.088085,67887.0,67886.0,0.58088955]
[1729793979842,0.088085,67887.0,67886.0,0.47143905]
[1729793980249,0.088085,67887.0,67886.0,0.58107954]
[1729793980401,0.088085,67887.0,67886.0,0.47143905]
[1729793982394,0.088085,67887.0,67886.0,0.47166782]
[1729793984497,0.088085,67887.0,67886.0,0.55934015]
[1729793984656,0.088085,67887.0,67886.0,0.47166782]
[1729793985276,0.088085,67887.0,67886.0,0.55933946]
[1729793987229,0.106847,67887.0,67886.0,0.44845849]
[1729793987497,0.088085,67887.0,67886.0,0.198955]
[1729793988122,0.088085,67887.0,67886.0,0.30249049]
[1729793993607,0.179585,67887.0,67886.0,0.05165]
[1729793993873,0.18634059,67887.0,67886.0,0.05165]
[1729793995973,0.18634059,67887.0,67886.0,0.03165]
[1729794000294,0.18634059,67887.0,67886.0,0.178955]
[1729794001485,0.01344059,67887.0,67886.0,0.178955]
[1729794001690,0.006685,67887.0,67886.0,0.178955]
[1729794001891,0.121045,67886.0,67885.0,0.10353549]
[1729794002133,0.12777819,67886.0,67885.0,0.25084249]
[1729794002535,0.121045,67886.0,67885.0,0.25084249]
[1729794003375,0.121045,67886.0,67885.0,0.147307]
[1729794003632,0.12779039,67886.0,67885.0,0.147307]
[1729794003803,0.12779039,67886.0,67885.0,0.25084249]
[1729794004036,0.12779039,67886.0,67881.0,0.30402775]
[1729794004241,0.12779039,67886.0,67884.0,0.14731]
[1729794004679,0.12779039,67886.0,67883.0,0.10353549]
[1729794005111,0.12779039,67886.0,67884.0,0.147309]
[1729794005324,0.12779039,67886.0,67885.0,0.147307]
[1729794005998,0.12779039,67886.0,67883.0,0.10353549]
[1729794006204,0.12779039,67886.0,67879.0,0.00165]
[1729794006205,0.0945,67882.0,67879.0,0.00165]
[1729794006423,0.0945,67882.0,67881.0,0.22112642]
[1729794006655,0.0945,67882.0,67879.0,0.00165]
[1729794006656,0.0945,67882.0,67880.0,0.147318]
[1729794007069,0.005,67883.0,67882.0,0.147314]
[1729794007470,0.01172644,67883.0,67882.0,0.147314]
[1729794007675,0.005,67883.0,67882.0,0.147314]
[1729794007876,0.01172644,67883.0,67882.0,0.147314]
[1729794010856,0.00672644,67883.0,67882.0,0.36844042]
[1729794011066,0.00672644,67883.0,67882.0,0.241714]
[1729794011298,0.121045,67886.0,67885.0,0.147307]
[1729794011554,0.121045,67886.0,67885.0,0.25084249]
[1729794011757,0.126045,67886.0,67885.0,0.25084249]
[1729794012118,0.13278246,67886.0,67885.0,0.25084249]
[1729794012342,0.12778246,67886.0,67885.0,0.25084249]
[1729794012755,0.121045,67886.0,67885.0,0.25084249]
[1729794013515,0.126045,67886.0,67885.0,0.25084249]
[1729794013717,0.13278246,67886.0,67885.0,0.25084249]
[1729794014571,0.126045,67886.0,67885.0,0.25084249]
[1729794014772,0.13278246,67886.0,67885.0,0.25084249]
[1729794014980,0.12778246,67886.0,67885.0,0.25084249]
[1729794017279,0.13278246,67886.0,67885.0,0.25084249]
[1729794018143,0.12778246,67886.0,67885.0,0.25249249]
[1729794018349,0.12860746,67886.0,67885.0,0.25249249]
[1729794018792,0.12187,67886.0,67885.0,0.25249249]
[1729794019003,0.12187,67886.0,67885.0,0.10518549]
[1729794019246,0.12860486,67886.0,67885.0,0.25249249]
[1729794019894,0.01255986,67886.0,67885.0,0.25249249]
[1729794020306,0.01255986,67886.0,67885.0,0.10518549]
[1729794020526,0.00755986,67886.0,67885.0,0.25249249]
[1729794021674,0.01255986,67886.0,67885.0,0.25249249]
[1729794022105,0.00755986,67886.0,67885.0,0.25249249]
[1729794022939,0.00755986,67886.0,67885.0,0.34899249]
[1729794023328,0.000825,67886.0,67885.0,0.34899249]
[1729794023992,0.000825,67886.0,67885.0,0.45252798]
[1729794024616,0.000825,67886.0,67885.0,0.34899249]
[1729794025042,0.000825,67886.0,67885.0,0.68073179]
[1729794027760,0.000825,67886.0,67885.0,0.72454329]
[1729794028583,0.000825,67886.0,67885.0,0.72454197]
[1729794028784,0.000825,67886.0,67885.0,0.7245428]
[1729794030489,0.000825,67886.0,67885.0,0.68073179]
[1729794030701,0.000825,67886.0,67885.0,0.72454743]
[1729794031569,0.000825,67886.0,67885.0,0.72454653]
[1729794032631,0.000825,67886.0,67885.0,0.68073179]
[1729794033564,0.000825,67886.0,67885.0,0.72455511]
[1729794033788,0.000825,67886.0,67885.0,0.44681962]
[1729794034011,0.000825,67886.0,67885.0,0.4029963]
[1729794034764,0.000825,67886.0,67885.0,0.25249249]
[1729794051110,0.000825,67886.0,67885.0,0.35602798]
[1729794052135,0.000825,67886.0,67885.0,0.7263751]
[1729794052753,0.000825,67886.0,67885.0,0.68253179]
[1729794056766,0.000825,67886.0,67885.0,0.59953179]
[1729794057614,0.000825,67886.0,67885.0,0.66529676]
[1729794058504,0.000825,67886.0,67885.0,0.76135818]
[1729794060924,0.000825,67886.0,67885.0,0.59953179]
[1729794061146,0.000825,67886.0,67885.0,0.76139066]
[1729794061805,0.000825,67886.0,67885.0,0.84908562]
[1729794062011,0.000825,67886.0,67885.0,0.76139066]
[1729794062232,0.000825,67886.0,67885.0,0.84908235]
[1729794063725,0.000825,67886.0,67885.0,0.76139066]
[1729794063930,0.000825,67886.0,67885.0,0.84908235]
[1729794065541,0.000825,67886.0,67885.0,0.76139066]
[1729794070027,0.000825,67886.0,67885.0,0.76142513]
[1729794070494,0.000825,67886.0,67885.0,0.78442513]
[1729794077108,0.000825,67886.0,67885.0,0.89406718]
[1729794077704,0.000825,67886.0,67885.0,0.89401418]
[1729794080723,0.000835,67889.0,67888.0,0.47517198]
[1729794080937,0.22112642,67901.0,67900.0,0.147135]
[1729794081374,0.22112642,67901.0,67900.0,0.19097454]
[1729794081375,0.00757013,67901.0,67900.0,0.19097454]
[1729794081595,0.000835,67908.0,67904.0,0.147266]
[1729794081784,0.000835,67908.0,67904.0,0.25080149]
[1729794081785,0.005835,67908.0,67904.0,0.25080149]
[1729794082031,0.000835,67908.0,67904.0,0.25080149]
[1729794082252,0.000835,67908.0,67904.0,0.147266]
[1729794082459,0.005,67907.0,67904.0,0.25080149]
[1729794083292,0.14933848,67909.0,67904.0,0.10353549]
[1729794083510,0.14933848,67909.0,67908.0,0.25079349]
[1729794086755,0.000834,67910.0,67908.0,0.25079349]
[1729794086983,0.000834,67910.0,67909.0,0.29775881]
[1729794087425,0.000834,67910.0,67909.0,0.4012943]
[1729794088783,0.000834,67910.0,67909.0,0.4106205]
[1729794089649,0.000834,67910.0,67909.0,0.4012943]
[1729794094380,0.000834,67910.0,67909.0,0.147255]
[1729794094617,0.000834,67910.0,67909.0,0.25079049]
[1729794094618,0.173834,67910.0,67909.0,0.25079049]
[1729794094758,0.000834,67910.0,67909.0,0.25079049]
[1729794099448,0.000834,67910.0,67909.0,0.25244049]
[1729794099874,0.01466483,67910.0,67909.0,0.25244049]
[1729794100100,0.000834,67910.0,67909.0,0.25244049]
[1729794100315,0.01466483,67910.0,67909.0,0.25244049]
[1729794100503,0.000834,67910.0,67909.0,0.25244049]
[1729794100683,0.01466899,67910.0,67909.0,0.25244049]
[1729794100885,0.000834,67910.0,67909.0,0.25244049]
[1729794101090,0.01466899,67910.0,67909.0,0.25244049]
[1729794103467,0.000834,67910.0,67909.0,0.25244049]
[1729794107554,0.000834,67910.0,67909.0,0.59827979]
[1729794107770,0.000834,67910.0,67909.0,0.70227979]
[1729794107996,0.000834,67910.0,67909.0,0.74603006]
[1729794108292,0.000834,67910.0,67909.0,0.86372807]
[1729794108481,0.000834,67910.0,67909.0,0.93432161]
[1729794108958,0.000834,67910.0,67909.0,0.71630856]
[1729794109196,0.000834,67910.0,67909.0,0.7819021]
[1729794110129,0.000834,67910.0,67909.0,0.94337019]
[1729794110351,0.000834,67910.0,67909.0,0.94339093]
[1729794110574,0.000834,67910.0,67909.0,0.78192284]
[1729794111553,0.000834,67910.0,67909.0,0.94336162]
[1729794112204,0.000834,67910.0,67909.0,0.87774734]
[1729794112411,0.000834,67910.0,67909.0,0.94334472]
[1729794114805,0.000834,67910.0,67909.0,0.73627374]
[1729794115018,0.000834,67910.0,67909.0,0.94334472]
[1729794116164,0.000834,67910.0,67909.0,0.87774734]
[1729794118093,0.000834,67910.0,67909.0,0.67067636]
[1729794118311,0.000834,67910.0,67909.0,0.58967636]
[1729794118611,0.000834,67910.0,67909.0,0.4079443]
[1729794119052,0.000834,67910.0,67909.0,0.4029443]
[1729794119278,0.000834,67910.0,67909.0,0.4079443]
[1729794120764,0.000834,67910.0,67909.0,0.4029443]
[1729794121467,0.000834,67910.0,67909.0,0.148905]
[1729794122124,0.0123982,67910.0,67909.0,0.25244049]
[1729794122329,0.000834,67910.0,67909.0,0.25244049]
[1729794122544,0.01239081,67910.0,67909.0,0.25244049]
[1729794123193,0.01239081,67910.0,67909.0,0.148905]
[1729794123417,0.000834,67910.0,67909.0,0.148905]
[1729794123844,0.01239081,67910.0,67909.0,0.148905]
[1729794124085,0.000834,67910.0,67909.0,0.148905]
[1729794124320,0.319887,67910.0,67909.0,0.00165]
[1729794124549,0.33148576,67910.0,67909.0,0.00165]
[1729794124789,0.43501716,67910.0,67909.0,0.00165]
[1729794125028,0.59552506,67910.0,67909.0,0.00165]
[1729794125460,0.59752506,67910.0,67909.0,0.00165]
[1729794127015,0.59552506,67910.0,67909.0,0.00165]
[1729794127476,0.49198957,67910.0,67909.0,0.00165]
[1729794127704,0.49398957,67910.0,67909.0,0.00165]
[1729794128145,0.59552506,67910.0,67909.0,0.00165]
[1729794128384,0.59752506,67910.0,67909.0,0.00165]
[1729794128848,0.59552506,67910.0,67909.0,0.00165]
[1729794129333,0.34148576,67910.0,67909.0,0.00165]
[1729794130468,0.33648576,67910.0,67909.0,0.00165]
[1729794130741,0.01243276,67910.0,67909.0,0.148905]
[1729794131202,0.000834,67910.0,67909.0,0.148905]
[1729794133177,0.000834,67910.0,67909.0,0.25244049]
[1729794134298,0.000834,67910.0,67909.0,0.29883187]
[1729794142905,0.179434,67923.0,67922.0,0.147227]
[1729794142906,0.000834,67923.0,67922.0,0.147227]
[1729794143121,0.000834,67923.0,67922.0,0.29715387]
[1729794143329,0.0124462,67923.0,67922.0,0.29715387]
[1729794143739,0.000834,67923.0,67922.0,0.29715387]
[1729794145846,0.000834,67923.0,67922.0,0.147227]
[1729794146674,0.000834,67923.0,67920.0,0.14992687]
[1729794147086,0.01161439,67922.0,67920.0,0.14992687]
[1729794147495,0.01161439,67922.0,67920.0,0.44438987]
[1729794147702,0.01161439,67922.0,67920.0,0.14992687]
[1729794147910,0.000834,67923.0,67920.0,0.29715787]
[1729794148111,0.0115286,67921.0,67920.0,0.29715787]
[1729794148329,0.000834,67923.0,67920.0,0.14992687]
[1729794148531,0.000834,67923.0,67921.0,0.294459]
[1729794148734,0.000834,67923.0,67920.0,0.14992687]
[1729794148938,0.000834,67923.0,67920.0,0.29715687]
[1729794149148,0.000834,67923.0,67920.0,0.14992687]
[1729794149558,0.000834,67923.0,67922.0,0.147227]
[1729794153220,0.146878,67930.0,67923.0,0.147224]
[1729794153426,0.000834,67931.0,67929.0,0.14992687]
[1729794153631,0.148043,67931.0,67929.0,0.14992687]
[1729794154050,0.000834,67931.0,67929.0,0.14992687]
[1729794154494,0.148042,67931.0,67929.0,0.14992687]
[1729794154915,0.000834,67931.0,67929.0,0.14992687]
[1729794155124,0.14721,67930.0,67929.0,0.14992687]
[1729794155343,0.148042,67931.0,67929.0,0.14992687]
[1729794155580,0.000834,67931.0,67929.0,0.14992687]
[1729794155801,0.148043,67931.0,67929.0,0.14992687]
[1729794156268,0.14721,67930.0,67929.0,0.14992687]
[1729794157473,0.15683757,67930.0,67929.0,0.14992687]
[1729794157668,0.00962757,67930.0,67929.0,0.14992687]
[1729794158419,0.15683757,67930.0,67929.0,0.10327768]
[1729794159901,0.00962757,67930.0,67929.0,0.10327768]